[Event "FIDE WCCC Open-08 2024"]
[Site "Montesilvano"]
[Date "2024.11.23"]
[Round "8.43"]
[White "Tokmachov, Daniel"]
[Black "Smilga, Olivers"]
[Result "1/2-1/2"]
[ECO "B22"]
[WhiteElo "1565"]
[BlackElo "1439"]
[Annotator "NA RC"]
[PlyCount "188"]
[EventDate "2024.11.18"]
[EventType "swiss"]
[EventCountry "ITA"]
[SourceTitle "playchess.com"]
[Source "ChessBase"]
[SourceQuality "1"]
[TimeControl "5400+30"]

1. e4 {[%emt 0:00:09]} c5 {[%emt 0:00:25]} 2. c3 {[%emt 0:01:00]} Nf6 {[%emt 0:00:26]} 3. e5 {[%emt 0:00:47]} Nd5 {[%emt 0:00:28]} 4. d4 {[%emt 0:01:00]} cxd4 {[%emt 0:00:47]} 5. cxd4 {[%emt 0:01:44]} e6 {[%emt 0:01:38]} 6. Nf3 {[%emt 0:02:01]} b6 {[%emt 0:01:16]} 7. a3 {[%emt 0:03:07]} Be7 {[%emt 0:04:59]} 8. Be2 {[%emt 0:06:23]} Ba6 {[%emt 0:02:38]} 9. Bxa6 {[%emt 0:02:10]} Nxa6 {[%emt 0:00:39]} 10. Qd3 {[%emt 0:00:26]} Nac7 {[%emt 0:02:43]} 11. Nc3 {[%emt 0:04:52]} d6 {[%emt 0:06:07]} 12. Nxd5 {[%emt 0:02:14]} Nxd5 {[%emt 0:01:51]} 13. O-O {[%emt 0:00:43]} O-O {[%emt 0:04:11]} 14. Re1 {[%emt 0:04:22]} Rc8 {[%emt 0:05:33]} 15. Re4 {[%emt 0:07:38]} Qc7 {[%emt 0:09:41]} 16. h3 {[%emt 0:02:48]} Rfd8 {[%emt 0:08:27]} 17. Ng5 {[%emt 0:06:32]} Qxc1+ {[%emt 0:04:48]} 18. Rxc1 {[%emt 0:04:09]} Rxc1+ {[%emt 0:01:13]} 19. Kh2 {[%emt 0:00:23]} Bxg5 {[%emt 0:00:27]} 20. exd6 {[%emt 0:03:25]} Nf6 {[%emt 0:05:00]} 21. Re2 {[%emt 0:02:35]} Nd5 {[%emt 0:03:44]} 22. Rc2 {[%emt 0:02:11]} Rxc2 {[%emt 0:01:18]} 23. Qxc2 {[%emt 0:00:01]} Rxd6 {[%emt 0:00:35]} 24. Qa4 {[%emt 0:02:52]} Rd8 {[%emt 0:05:09]} 25. Qxa7 {[%emt 0:02:13]} Bf6 {[%emt 0:02:16]} 26. Qa4 {[%emt 0:00:58]} h6 {[%emt 0:03:04]} 27. Qc4 {[%emt 0:02:02]} Ne7 {[%emt 0:00:31]} 28. Qc7 {[%emt 0:00:22]} Nd5 {[%emt 0:01:21]} 29. Qc4 {[%emt 0:00:15]} e5 {[%emt 0:08:52]} 30. dxe5 {[%emt 0:01:15]} Bxe5+ {[%emt 0:01:25]} 31. g3 {[%emt 0:00:05]} Bxb2 {[%emt 0:02:09]} 32. Qb3 {[%emt 0:01:17]} Bd4 {[%emt 0:00:48]} 33. Qc2 {[%emt 0:00:56]} Bc5 {[%emt 0:01:14]} 34. a4 {[%emt 0:01:11]} Nb4 {[%emt 0:01:24]} 35. Qc3 {[%emt 0:00:38]} Rd3 {[%emt 0:00:52]} 36. Qc1 {[%emt 0:01:06]} Rf3 {[%emt 0:00:50]} 37. Qe1 {[%emt 0:01:14]} Rxf2+ {[%emt 0:00:41]} 38. Kh1 {[%emt 0:00:09]} Ra2 {[%emt 0:01:43]} 39. h4 {[%emt 0:01:35]} Kf8 {[%emt 0:01:49]} 40. Qd1 {[%emt 0:00:57]} g6 {[%emt 0:00:56]} 41. Qd8+ {[%emt 0:01:15]} Kg7 {[%emt 0:00:32]} 42. Qe8 {[%emt 0:01:24]} Bd6 {[%emt 0:01:34]} 43. Qe3 {[%emt 0:02:05]} Bc5 {[%emt 0:02:15]} 44. Qe5+ {[%emt 0:00:21]} Kh7 {[%emt 0:00:14]} 45. Qf4 {[%emt 0:02:10]} Rf2 {[%emt 0:01:29]} 46. Qe4 {[%emt 0:04:04]} Nd3 {[%emt 0:01:21]} 47. Qxd3 {[%emt 0:01:24]} Rf6 {[%emt 0:01:25]} 48. Qc3 {[%emt 0:00:06]} Kg7 {[%emt 0:00:24]} 49. g4 {[%emt 0:00:30]} g5 {[%emt 0:00:50]} 50. h5 {[%emt 0:02:43]} Be7 {[%emt 0:00:35]} 51. Kg2 {[%emt 0:01:18]} Kh7 {[%emt 0:00:24]} 52. Qe5 {[%emt 0:01:54]} Re6 {[%emt 0:00:20]} 53. Qf5+ {[%emt 0:00:50]} Kg7 {[%emt 0:00:09]} 54. Qf2 {[%emt 0:00:53]} Bc5 {[%emt 0:00:19]} 55. Qc2 {[%emt 0:00:44]} Rf6 {[%emt 0:00:16]} 56. Qc3 {[%emt 0:00:58]} Be7 {[%emt 0:00:27]} 57. Qe5 {[%emt 0:01:05]} Kf8 {[%emt 0:00:24]} 58. Qd4 {[%emt 0:01:40]} Kg7 {[%emt 0:00:37]} 59. Qc3 {[%emt 0:01:18]} Kf8 {[%emt 0:00:09]} 60. Qe5 {[%emt 0:01:14]} Ke8 {[%emt 0:00:32]} 61. Qb5+ {[%emt 0:01:20]} Kf8 {[%emt 0:00:12]} 62. a5 {[%emt 0:01:18]} bxa5 {[%emt 0:00:16]} 63. Qxa5 {[%emt 0:00:06]} Rf4 {[%emt 0:00:51]} 64. Qa6 {[%emt 0:00:51]} Kg7 {[%emt 0:00:21]} 65. Qa1+ {[%emt 0:00:39]} Bf6 {[%emt 0:00:09]} 66. Qd1 {[%emt 0:00:27]} Rd4 {[%emt 0:00:21]} 67. Qe2 {[%emt 0:01:03]} Rf4 {[%emt 0:00:18]} 68. Kg3 {[%emt 0:00:14]} Kf8 {[%emt 0:00:28]} 69. Qb5 {[%emt 0:00:52]} Kg7 {[%emt 0:00:20]} 70. Qb8 {[%emt 0:00:28]} Rd4 {[%emt 0:00:44]} 71. Kf3 {[%emt 0:00:32]} Rf4+ {[%emt 0:00:12]} 72. Kg3 {[%emt 0:00:05]} Rd4 {[%emt 0:00:09]} 73. Qb5 {[%emt 0:01:57]} Rf4 {[%emt 0:00:19]} 74. Qd7 {[%emt 0:00:37]} Rd4 {[%emt 0:00:20]} 75. Qf5 {[%emt 0:00:41]} Rf4 {[%emt 0:00:11]} 76. Qc8 {[%emt 0:00:07]} Rd4 {[%emt 0:00:09]} 77. Kf3 {[%emt 0:00:10]} Rf4+ {[%emt 0:00:08]} 78. Ke3 {[%emt 0:00:31]} Bd4+ {[%emt 0:00:56]} 79. Kd3 {[%emt 0:00:15]} Bf6 {[%emt 0:00:09]} 80. Kc2 {[%emt 0:01:12]} Rd4 {[%emt 0:00:15]} 81. Qf5 {[%emt 0:00:40]} Rf4 {[%emt 0:00:08]} 82. Qd7 {[%emt 0:00:47]} Rd4 {[%emt 0:00:05]} 83. Qf5 {[%emt 0:00:55]} Rf4 {[%emt 0:00:06]} 84. Qd7 {[%emt 0:00:35]} Rd4 {[%emt 0:00:08]} 85. Qc8 {[%emt 0:00:41]} Rf4 {[%emt 0:00:05]} 86. Kd3 {[%emt 0:01:46]} Rd4+ {[%emt 0:00:07]} 87. Ke3 {[%emt 0:00:32]} Rf4 {[%emt 0:00:04]} 88. Qd7 {[%emt 0:01:05]} Rd4 {[%emt 0:00:51]} 89. Qf5 {[%emt 0:02:29]} Rf4 {[%emt 0:08:24]} 90. Qc8 {[%emt 0:00:17]} Bd4+ {[%emt 0:00:00]} 91. Kd3 {[%emt 0:00:15]} Bf6 {[%emt 0:00:00]} 92. Ke3 {[%emt 0:00:12]} Bd4+ {[%emt 0:00:00]} 93. Kd3 {[%emt 0:00:09]} Bf6 {[%emt 0:00:00]} 94. Ke3 {[%emt 0:01:31]} Bd4+ {[%emt 0:00:00]} 1/2-1/2

[Event "FIDE WCCC Open-08 2024"]
[Site "Montesilvano"]
[Date "2024.11.23"]
[Round "8.45"]
[White "Xin, Andrew M."]
[Black "Senthilkumar, Tharveen"]
[Result "1-0"]
[ECO "D05"]
[WhiteElo "1546"]
[BlackElo "1411"]
[Annotator "NA RC"]
[PlyCount "43"]
[EventDate "2024.11.18"]
[EventType "swiss"]
[EventCountry "ITA"]
[SourceTitle "playchess.com"]
[Source "ChessBase"]
[SourceQuality "1"]
[TimeControl "5400+30"]

1. d4 {[%emt 0:00:29]} d5 {[%emt 0:00:08]} 2. Nf3 {[%emt 0:00:19]} Nf6 {[%emt 0:00:13]} 3. e3 {[%emt 0:00:13]} e6 {[%emt 0:00:06]} 4. Bd3 {[%emt 0:00:05]} c5 {[%emt 0:00:13]} 5. b3 {[%emt 0:01:10]} Nc6 {[%emt 0:00:13]} 6. Bb2 {[%emt 0:00:19]} cxd4 {[%emt 0:00:12]} 7. exd4 {[%emt 0:00:07]} Bd6 {[%emt 0:00:19]} 8. O-O {[%emt 0:00:08]} O-O {[%emt 0:00:11]} 9. Nbd2 {[%emt 0:00:35]} Re8 {[%emt 0:00:38]} 10. Ne5 {[%emt 0:00:41]} Qc7 {[%emt 0:01:35]} 11. f4 {[%emt 0:00:11]} Bd7 {[%emt 0:02:40]} 12. c4 {[%emt 0:02:18]} dxc4 {[%emt 0:00:32]} 13. Ndxc4 {[%emt 0:00:44]} Be7 {[%emt 0:02:04]} 14. Rc1 {[%emt 0:02:10]} Rad8 {[%emt 0:02:05]} 15. g4 {[%emt 0:03:29]} Bf8 {[%emt 0:02:36]} 16. g5 {[%emt 0:01:47]} Nd5 {[%emt 0:03:21]} 17. Bxh7+ {[%emt 0:00:55]} Kxh7 {[%emt 0:10:26]} 18. Qh5+ {[%emt 0:00:22]} Kg8 {[%emt 0:11:11]} 19. Qxf7+ {[%emt 0:00:07]} Kh8 {[%emt 0:05:13]} 20. Rf3 {[%emt 0:00:22]} Nxf4 {[%emt 0:00:50]} 21. Rxf4 {[%emt 0:00:50]} Bc8 {[%emt 0:56:14]} 22. Rh4# {[%emt 0:00:13]} 1-0

[Event "FIDE WCCC Open-08 2024"]
[Site "Montesilvano"]
[Date "2024.11.23"]
[Round "8.46"]
[White "Morais, Benjamin Guedes"]
[Black "Thomas, Robert K"]
[Result "1/2-1/2"]
[ECO "D02"]
[WhiteElo "1652"]
[BlackElo "2166"]
[Annotator "RC"]
[PlyCount "61"]
[EventDate "2024.11.18"]
[EventType "swiss"]
[EventCountry "ITA"]
[SourceTitle "playchess.com"]
[Source "ChessBase"]
[SourceQuality "1"]
[TimeControl "5400+30"]

1. Nf3 {[%emt 0:00:02]} d5 {[%emt 0:00:06]} 2. g3 {[%emt 0:00:04]} c5 {[%emt 0:00:04]} 3. Bg2 {[%emt 0:00:04]} Nc6 {[%emt 0:00:07]} 4. d4 {[%emt 0:00:05]} cxd4 {[%emt 0:00:12]} 5. Nxd4 {[%emt 0:00:07]} e5 {[%emt 0:00:07]} 6. Nxc6 {[%emt 0:00:10]} bxc6 {[%emt 0:00:31]} 7. O-O {[%emt 0:00:09]} Nf6 {[%emt 0:00:06]} 8. c4 {[%emt 0:00:11]} Be6 {[%emt 0:00:18]} 9. Bg5 {[%emt 0:00:23]} Be7 {[%emt 0:00:49]} 10. Nc3 {[%emt 0:00:28]} O-O {[%emt 0:00:45]} 11. cxd5 {[%emt 0:00:18]} Nxd5 {[%emt 0:01:53]} 12. Bxe7 {[%emt 0:00:22]} Nxe7 {[%emt 0:00:14]} 13. Qc2 {[%emt 0:00:08]} Qb6 {[%emt 0:01:45]} 14. Na4 {[%emt 0:01:09]} Qc7 {[%emt 0:05:07]} 15. Nc5 {[%emt 0:01:10]} Bf5 {[%emt 0:01:25]} 16. Be4 {[%emt 0:00:40]} Bxe4 {[%emt 0:01:10]} 17. Qxe4 {[%emt 0:00:09]} Rad8 {[%emt 0:00:34]} 18. Rad1 {[%emt 1:33:51]} Nd5 {[%emt 0:00:51]} 19. Nd3 {[%emt 0:00:00]} f6 {[%emt 0:08:44]} 20. Nc5 {[%emt 0:00:00]} Qf7 {[%emt 0:02:23]} 21. Rc1 {[%emt 0:00:00]} Rfe8 {[%emt 0:01:51]} 22. Qc4 {[%emt 0:00:00]} Nb6 {[%emt 0:02:19]} 23. Qxf7+ {[%emt 0:00:00]} Kxf7 {[%emt 1:10:39]} 24. Nb7 {[%emt 0:00:00]} Rd7 {[%emt 0:00:00]} 25. Nc5 {[%emt 0:00:00]} Rd2 {[%emt 0:00:00]} 26. Ne4 {[%emt 0:00:00]} Rd4 {[%emt 0:00:00]} 27. Nc5 {[%emt 0:00:00]} Rd2 {[%emt 0:00:00]} 28. Ne4 {[%emt 0:00:00]} Rd4 {[%emt 0:00:00]} 29. Nc5 {[%emt 0:00:00]} Rd2 {[%emt 0:00:00]} 30. Ne4 {[%emt 0:00:00]} Rd4 {[%emt 0:00:00]} 31. Ra1 {[%emt 0:06:30]} 1/2-1/2

[Event "FIDE WCCC Open-08 2024"]
[Site "Montesilvano"]
[Date "2024.11.23"]
[Round "8.47"]
[White "Schimming, Wilhelm"]
[Black "Vrsalovic Acuna. Stjepan Anton"]
[Result "1-0"]
[ECO "E20"]
[WhiteElo "1628"]
[BlackElo "1452"]
[Annotator "NA RC"]
[PlyCount "93"]
[EventDate "2024.11.18"]
[EventType "swiss"]
[EventCountry "ITA"]
[SourceTitle "playchess.com"]
[Source "ChessBase"]
[SourceQuality "1"]
[TimeControl "5400+30"]

1. c4 {[%emt 0:00:01]} Nf6 {[%emt 0:00:23]} 2. Nc3 {[%emt 0:00:06]} e6 {[%emt 0:00:52]} 3. e4 {[%emt 0:00:08]} Nc6 {[%emt 0:00:44]} 4. d4 {[%emt 0:00:28]} Bb4 {[%emt 0:02:13]} 5. f3 {[%emt 0:42:29]} d6 {[%emt 0:06:15]} 6. Nge2 {[%emt 0:01:50]} O-O {[%emt 0:02:58]} 7. a3 {[%emt 0:00:04]} Bxc3+ {[%emt 0:01:25]} 8. Nxc3 {[%emt 0:00:06]} e5 {[%emt 0:00:22]} 9. d5 {[%emt 0:14:47]} Nd4 {[%emt 0:01:17]} 10. Be3 {[%emt 0:01:01]} c5 {[%emt 0:03:00]} 11. dxc6 {[%emt 0:01:04]} Nxc6 {[%emt 0:00:31]} 12. Be2 {[%emt 0:03:01]} a6 {[%emt 0:06:41]} 13. O-O {[%emt 0:01:00]} h6 {[%emt 0:01:29]} 14. Nd5 {[%emt 0:02:45]} Nxd5 {[%emt 0:02:59]} 15. cxd5 {[%emt 0:00:01]} Ne7 {[%emt 0:00:47]} 16. Rc1 {[%emt 0:00:14]} Bd7 {[%emt 0:01:14]} 17. Qd2 {[%emt 0:00:26]} Ng6 {[%emt 0:00:36]} 18. Rc3 {[%emt 0:01:04]} Rc8 {[%emt 0:01:17]} 19. Rxc8 {[%emt 0:00:12]} Bxc8 {[%emt 0:02:06]} 20. Rc1 {[%emt 0:00:05]} Bd7 {[%emt 0:01:24]} 21. Qb4 {[%emt 0:00:04]} Qb8 {[%emt 0:03:59]} 22. Qb6 {[%emt 0:00:05]} Rc8 {[%emt 0:07:01]} 23. Rxc8+ {[%emt 0:00:05]} Bxc8 {[%emt 0:00:10]} 24. Bxa6 {[%emt 0:00:05]} Qa8 {[%emt 0:01:51]} 25. Bb5 {[%emt 0:00:11]} Nf8 {[%emt 0:03:25]} 26. Qd8 {[%emt 0:01:15]} b6 {[%emt 0:01:19]} 27. Qxd6 {[%emt 0:31:23]} Qa5 {[%emt 0:01:54]} 28. Qxb6 {[%emt 0:00:00]} Qe1+ {[%emt 0:00:26]} 29. Bf1 {[%emt 0:00:00]} Nd7 {[%emt 0:01:10]} 30. Bf2 {[%emt 0:00:00]} Qxf1+ {[%emt 0:01:35]} 31. Kxf1 {[%emt 0:00:00]} Nxb6 {[%emt 0:00:12]} 32. Bxb6 {[%emt 0:00:00]} Kf8 {[%emt 0:00:16]} 33. Ke2 {[%emt 0:00:00]} g5 {[%emt 0:00:40]} 34. Kd3 {[%emt 0:00:00]} f5 {[%emt 0:00:27]} 35. Kc4 {[%emt 0:00:00]} fxe4 {[%emt 0:00:31]} 36. fxe4 {[%emt 0:00:00]} Ke7 {[%emt 0:02:06]} 37. Bc7 {[%emt 0:00:00]} Ba6+ {[%emt 0:00:49]} 38. Kc5 {[%emt 0:00:00]} Bd3 {[%emt 0:00:54]} 39. Bxe5 {[%emt 0:00:00]} Bxe4 {[%emt 0:00:18]} 40. g3 {[%emt 0:00:00]} Kd7 {[%emt 0:00:31]} 41. b4 {[%emt 0:00:00]} Kc8 {[%emt 0:00:57]} 42. b5 {[%emt 0:00:00]} Kb7 {[%emt 0:00:20]} 43. a4 {[%emt 0:00:00]} Bf5 {[%emt 0:00:15]} 44. Kd6 {[%emt 0:00:00]} h5 {[%emt 0:00:26]} 45. Ke7 {[%emt 0:00:00]} h4 {[%emt 0:00:25]} 46. gxh4 {[%emt 0:00:00]} gxh4 {[%emt 0:00:49]} 47. d6 {[%emt 0:00:00]} 1-0

[Event "FIDE WCCC Open-08 2024"]
[Site "Montesilvano"]
[Date "2024.11.23"]
[Round "8.48"]
[White "Kim, Rian B"]
[Black "Kakagiannis, Stylianos"]
[Result "1-0"]
[ECO "D02"]
[WhiteElo "1452"]
[BlackElo "1423"]
[Annotator "NA RC"]
[PlyCount "101"]
[EventDate "2024.11.18"]
[EventType "swiss"]
[EventCountry "ITA"]
[SourceTitle "playchess.com"]
[Source "ChessBase"]
[SourceQuality "1"]
[TimeControl "5400+30"]

1. d4 {[%emt 0:00:32]} d5 {[%emt 0:00:03]} 2. Bf4 {[%emt 0:00:09]} Nf6 {[%emt 0:00:12]} 3. e3 {[%emt 0:00:16]} Bg4 {[%emt 0:00:16]} 4. Nf3 {[%emt 0:01:01]} c5 {[%emt 0:00:12]} 5. c3 {[%emt 0:00:05]} Qb6 {[%emt 0:00:12]} 6. b3 {[%emt 1:31:27]} Nbd7 {[%emt 0:00:55]} 7. Nbd2 {[%emt 0:00:00]} e6 {[%emt 0:03:05]} 8. Be2 {[%emt 0:00:00]} Be7 {[%emt 0:04:35]} 9. Ne5 {[%emt 0:00:00]} Nxe5 {[%emt 0:05:03]} 10. Bxe5 {[%emt 0:00:00]} Bxe2 {[%emt 0:00:19]} 11. Qxe2 {[%emt 0:00:00]} cxd4 {[%emt 0:06:32]} 12. Bxd4 {[%emt 0:00:00]} Qd6 {[%emt 0:00:19]} 13. c4 {[%emt 0:00:00]} O-O {[%emt 0:03:18]} 14. c5 {[%emt 0:04:00]} Qd7 {[%emt 0:03:04]} 15. Nf3 {[%emt 0:00:00]} Rac8 {[%emt 0:06:14]} 16. Rc1 {[%emt 0:00:00]} Qc7 {[%emt 0:02:39]} 17. O-O {[%emt 0:00:00]} Qa5 {[%emt 0:01:02]} 18. Qc2 {[%emt 0:00:00]} Ne4 {[%emt 0:02:17]} 19. Qb2 {[%emt 0:00:00]} f6 {[%emt 0:02:39]} 20. b4 {[%emt 0:03:00]} Qb5 {[%emt 0:01:18]} 21. Qb3 {[%emt 0:00:00]} Rc7 {[%emt 0:10:37]} 22. Rc2 {[%emt 0:00:00]} Rfc8 {[%emt 0:06:18]} 23. Rfc1 {[%emt 0:00:00]} a5 {[%emt 0:40:51]} 24. bxa5 {[%emt 0:00:00]} Qxa5 {[%emt 0:00:00]} 25. Bc3 {[%emt 0:00:00]} Nxc3 {[%emt 0:00:00]} 26. Rxc3 {[%emt 0:00:00]} Rxc5 {[%emt 0:00:00]} 27. Rxc5 {[%emt 0:00:00]} Rxc5 {[%emt 0:00:00]} 28. Rb1 {[%emt 0:00:00]} Qc7 {[%emt 0:00:00]} 29. g3 {[%emt 0:00:00]} Rc1+ {[%emt 0:00:00]} 30. Rxc1 {[%emt 0:00:00]} Qxc1+ {[%emt 0:00:00]} 31. Kg2 {[%emt 0:00:00]} Qc7 {[%emt 0:00:00]} 32. Nd4 {[%emt 0:00:00]} Qd7 {[%emt 0:00:00]} 33. Qb6 {[%emt 0:06:30]} Kf7 {[%emt 0:00:00]} 34. a4 {[%emt 0:00:00]} Bd8 {[%emt 0:00:00]} 35. Qb4 {[%emt 0:00:00]} b6 {[%emt 0:00:00]} 36. Nb5 {[%emt 0:00:00]} Be7 {[%emt 0:00:00]} 37. Qh4 {[%emt 0:00:00]} h6 {[%emt 0:00:00]} 38. Qh5+ {[%emt 0:00:00]} Kf8 {[%emt 0:00:00]} 39. Nd4 {[%emt 0:00:00]} Bc5 {[%emt 0:00:00]} 40. Qg4 {[%emt 0:00:00]} Bxd4 {[%emt 0:00:00]} 41. Qxd4 {[%emt 0:00:00]} Qc6 {[%emt 0:00:00]} 42. Qb4+ {[%emt 0:00:00]} Kf7 {[%emt 0:00:00]} 43. Qd4 {[%emt 0:00:00]} Qc5 {[%emt 0:00:00]} 44. Qxc5 {[%emt 0:00:00]} bxc5 {[%emt 0:00:00]} 45. a5 {[%emt 0:00:00]} c4 {[%emt 0:00:00]} 46. Kf1 {[%emt 0:00:00]} Ke7 {[%emt 0:00:00]} 47. a6 {[%emt 0:00:00]} c3 {[%emt 0:00:00]} 48. Ke1 {[%emt 0:00:00]} Kd7 {[%emt 0:00:00]} 49. a7 {[%emt 0:00:00]} c2 {[%emt 0:00:00]} 50. Kd2 {[%emt 0:00:00]} Kc7 {[%emt 0:00:00]} 51. a8=Q {[%emt 0:00:00]} 1-0

[Event "FIDE WCCC Open-08 2024"]
[Site "Montesilvano"]
[Date "2024.11.23"]
[Round "8.50"]
[White "Ameen Akbar T A"]
[Black "Contreras Salcedo, Samuel Esteban"]
[Result "1-0"]
[ECO "C56"]
[WhiteElo "1579"]
[BlackElo "1508"]
[Annotator "NA RC"]
[PlyCount "67"]
[EventDate "2024.11.18"]
[EventType "swiss"]
[EventCountry "ITA"]
[SourceTitle "playchess.com"]
[Source "ChessBase"]
[SourceQuality "1"]
[TimeControl "5400+30"]

1. e4 {[%emt 0:00:45]} e5 {[%emt 0:00:21]} 2. Nf3 {[%emt 0:00:15]} Nc6 {[%emt 0:00:09]} 3. d4 {[%emt 0:00:07]} exd4 {[%emt 0:00:08]} 4. Bc4 {[%emt 0:00:12]} Nf6 {[%emt 0:00:16]} 5. O-O {[%emt 0:00:10]} Bc5 {[%emt 0:01:16]} 6. e5 {[%emt 0:00:22]} d5 {[%emt 0:01:12]} 7. exf6 {[%emt 0:01:14]} dxc4 {[%emt 0:01:06]} 8. Re1+ {[%emt 0:00:06]} Be6 {[%emt 0:00:19]} 9. Ng5 {[%emt 0:00:13]} Qxf6 {[%emt 0:00:28]} 10. Nxe6 {[%emt 0:02:06]} fxe6 {[%emt 0:04:28]} 11. Qh5+ {[%emt 0:00:06]} g6 {[%emt 0:00:50]} 12. Qxc5 {[%emt 0:00:06]} Rf8 {[%emt 0:00:38]} 13. f3 {[%emt 0:00:54]} O-O-O {[%emt 0:04:32]} 14. Bg5 {[%emt 0:00:08]} Qf7 {[%emt 0:01:42]} 15. Bxd8 {[%emt 1:31:16]} Rxd8 {[%emt 0:00:35]} 16. Qxc4 {[%emt 0:00:00]} Rd5 {[%emt 0:05:58]} 17. Nd2 {[%emt 0:00:00]} Kd7 {[%emt 0:07:38]} 18. Ne4 {[%emt 0:00:00]} h5 {[%emt 0:08:33]} 19. Nc5+ {[%emt 0:00:00]} Ke7 {[%emt 0:01:09]} 20. Qxd5 {[%emt 0:00:00]} e5 {[%emt 0:09:14]} 21. Qd7+ {[%emt 0:00:00]} Kf8 {[%emt 0:02:20]} 22. Qxf7+ {[%emt 0:00:00]} Kxf7 {[%emt 0:01:10]} 23. Nxb7 {[%emt 0:00:00]} Nb4 {[%emt 0:00:13]} 24. Rxe5 {[%emt 0:00:00]} Nxc2 {[%emt 0:00:12]} 25. Rc1 {[%emt 0:00:00]} d3 {[%emt 0:00:12]} 26. Rxc2 {[%emt 0:00:00]} dxc2 {[%emt 0:48:51]} 27. Rc5 {[%emt 0:00:00]} c1=Q+ {[%emt 0:00:00]} 28. Rxc1 {[%emt 0:00:00]} c5 {[%emt 0:00:00]} 29. Rxc5 {[%emt 0:00:00]} a5 {[%emt 0:00:00]} 30. Nxa5 {[%emt 0:00:00]} g5 {[%emt 0:00:00]} 31. Rxg5 {[%emt 0:00:00]} Kf6 {[%emt 0:00:00]} 32. Rxh5 {[%emt 0:00:00]} Ke6 {[%emt 0:00:00]} 33. Rc5 {[%emt 0:00:00]} Kd6 {[%emt 0:00:00]} 34. Nb3 {[%emt 0:00:00]} 1-0

[Event "FIDE WCCC Open-08 2024"]
[Site "Montesilvano"]
[Date "2024.11.24"]
[Round "9.1"]
[White "Ulan, Rizat"]
[Black "Li, Aiden Linyuan"]
[Result "0-1"]
[ECO "C07"]
[WhiteElo "1783"]
[BlackElo "1877"]
[Annotator "NA RC"]
[PlyCount "78"]
[EventDate "2024.11.18"]
[EventType "swiss"]
[EventCountry "ITA"]
[SourceTitle "playchess.com"]
[Source "ChessBase"]
[SourceQuality "1"]
[TimeControl "5400+30"]

1. e4 {[%emt 0:00:03]} e6 {[%emt 0:00:05]} 2. d4 {[%emt 0:00:04]} d5 {[%emt 0:00:05]} 3. Nd2 {[%emt 0:00:06]} c5 {[%emt 0:00:03]} 4. exd5 {[%emt 0:01:17]} Qxd5 {[%emt 0:00:11]} 5. Ngf3 {[%emt 0:00:07]} cxd4 {[%emt 0:00:07]} 6. Bc4 {[%emt 0:00:08]} Qd6 {[%emt 0:00:06]} 7. O-O {[%emt 0:00:25]} Nf6 {[%emt 0:00:08]} 8. Nb3 {[%emt 0:01:05]} Nc6 {[%emt 0:00:08]} 9. Qe2 {[%emt 0:00:05]} Be7 {[%emt 0:05:18]} 10. Rd1 {[%emt 0:01:18]} e5 {[%emt 0:08:50]} 11. Bb5 {[%emt 0:10:18]} Bg4 {[%emt 0:02:19]} 12. Bxc6+ {[%emt 0:01:08]} bxc6 {[%emt 0:06:41]} 13. Bg5 {[%emt 0:24:17]} O-O {[%emt 0:11:12]} 14. Re1 {[%emt 0:01:41]} Bxf3 {[%emt 0:02:04]} 15. Qxf3 {[%emt 0:00:58]} Nd5 {[%emt 0:05:36]} 16. Bxe7 {[%emt 0:02:30]} Nxe7 {[%emt 0:00:07]} 17. Qe4 {[%emt 0:00:07]} Ng6 {[%emt 0:00:04]} 18. Na5 {[%emt 0:00:11]} Qc5 {[%emt 0:01:10]} 19. Nb3 {[%emt 0:18:24]} Qb6 {[%emt 0:02:40]} 20. Rab1 {[%emt 0:10:07]} c5 {[%emt 0:04:26]} 21. Qd5 {[%emt 0:01:51]} Rac8 {[%emt 0:00:13]} 22. Qc4 {[%emt 0:00:17]} Rfe8 {[%emt 0:04:40]} 23. a3 {[%emt 0:05:23]} Qe6 {[%emt 0:02:30]} 24. Nd2 {[%emt 0:20:40]} Qxc4 {[%emt 0:07:32]} 25. Nxc4 {[%emt 0:00:00]} Re6 {[%emt 0:00:06]} 26. g3 {[%emt 0:00:00]} f5 {[%emt 0:01:28]} 27. g4 {[%emt 0:00:00]} Rf8 {[%emt 0:02:13]} 28. b4 {[%emt 0:00:00]} Nh4 {[%emt 0:01:33]} 29. Re2 {[%emt 0:00:00]} cxb4 {[%emt 0:00:09]} 30. Rxb4 {[%emt 0:00:00]} fxg4 {[%emt 0:00:59]} 31. Re4 {[%emt 0:00:00]} Nf3+ {[%emt 0:00:15]} 32. Kg2 {[%emt 0:00:00]} Rh6 {[%emt 0:00:30]} 33. Rxg4 {[%emt 0:00:00]} Rxh2+ {[%emt 0:00:10]} 34. Kg3 {[%emt 0:00:00]} h5 {[%emt 0:00:44]} 35. Re4 {[%emt 0:00:00]} h4+ {[%emt 0:00:21]} 36. Kg4 {[%emt 0:00:00]} Rxf2 {[%emt 0:00:13]} 37. Rxe5 {[%emt 0:01:45]} Rg2+ {[%emt 0:00:15]} 38. Kh5 {[%emt 0:00:06]} Rf6 {[%emt 0:01:02]} 39. Re8+ {[%emt 0:01:08]} Kh7 {[%emt 0:00:10]} 0-1

[Event "FIDE WCCC Open-08 2024"]
[Site "Montesilvano"]
[Date "2024.11.24"]
[Round "9.2"]
[White "Guo, Philipp Ziming"]
[Black "Protopopescu, Luca"]
[Result "1-0"]
[ECO "A39"]
[WhiteElo "2139"]
[BlackElo "1818"]
[Annotator "RC"]
[PlyCount "53"]
[EventDate "2024.11.18"]
[EventType "swiss"]
[EventCountry "ITA"]
[SourceTitle "playchess.com"]
[Source "ChessBase"]
[SourceQuality "1"]
[TimeControl "5400+30"]

1. d4 {[%emt 0:00:03]} Nf6 {[%emt 0:00:08]} 2. c4 {[%emt 0:00:07]} g6 {[%emt 0:00:09]} 3. Nf3 {[%emt 0:00:05]} Bg7 {[%emt 0:00:04]} 4. g3 {[%emt 0:00:05]} O-O {[%emt 0:00:12]} 5. Bg2 {[%emt 0:00:03]} c5 {[%emt 0:02:59]} 6. O-O {[%emt 0:00:12]} cxd4 {[%emt 0:05:49]} 7. Nxd4 {[%emt 0:00:05]} Nc6 {[%emt 0:00:45]} 8. Nc3 {[%emt 0:00:49]} Qb6 {[%emt 0:05:39]} 9. Nb3 {[%emt 0:01:37]} d6 {[%emt 0:02:05]} 10. Be3 {[%emt 0:02:11]} Qc7 {[%emt 0:04:29]} 11. c5 {[%emt 0:04:59]} dxc5 {[%emt 0:09:43]} 12. Bxc5 {[%emt 0:03:52]} a6 {[%emt 0:03:56]} 13. Rc1 {[%emt 0:02:02]} Rd8 {[%emt 0:05:33]} 14. Qc2 {[%emt 0:00:24]} Be6 {[%emt 0:02:27]} 15. Rfd1 {[%emt 0:02:23]} Nd7 {[%emt 0:01:42]} 16. Nd5 {[%emt 0:03:03]} Bxd5 {[%emt 0:00:47]} 17. Rxd5 {[%emt 0:00:08]} Nxc5 {[%emt 0:02:38]} 18. Rxc5 {[%emt 0:00:24]} a5 {[%emt 0:04:39]} 19. a4 {[%emt 0:05:36]} Rdb8 {[%emt 0:04:44]} 20. e3 {[%emt 0:01:49]} Qd6 {[%emt 0:01:26]} 21. Rd5 {[%emt 0:01:37]} Qf6 {[%emt 0:00:34]} 22. Rd2 {[%emt 0:02:56]} Ra6 {[%emt 0:04:39]} 23. Nc5 {[%emt 0:00:52]} Nb4 {[%emt 0:03:21]} 24. Qd1 {[%emt 0:01:35]} Rd6 {[%emt 0:04:51]} 25. Nd7 {[%emt 0:01:24]} Rxd2 {[%emt 0:00:25]} 26. Nxf6+ {[%emt 0:00:02]} Bxf6 {[%emt 0:00:20]} 27. Qxd2 {[%emt 0:00:03]} 1-0